bitfinex/quotes_SOLUSD_20250919
["timestamp","ask_amount","ask_price","bid_price","bid_amount"]
[1758298119213,5.860001,238.21,238.2,52.39823899]
[1758298122728,5.860001,238.21,238.2,133.19823899]
[1758298123441,0.2,238.26,238.25,22.32641865]
[1758298123609,0.2,238.26,238.25,135.54641865]
[1758298124044,0.2,238.26,238.25,137.02091082]
[1758298124210,0.2,238.26,238.25,136.25641865]
[1758298124417,0.2,238.26,238.25,137.73091082]
[1758298125012,0.2,238.26,238.25,141.92818259]
[1758298128529,0.2,238.26,238.25,141.21818259]
[1758298128724,0.2,238.26,238.25,141.92818259]
[1758298131934,0.2,238.26,238.25,108.03369042]
[1758298132137,0.2,238.26,238.25,141.92818259]
[1758298132928,0.2,238.26,238.25,141.21818259]
[1758298133439,0.2,238.26,238.25,141.92818259]
[1758298134881,0.2,238.26,238.25,141.21818259]
[1758298135430,0.2,238.26,238.25,141.87818259]
[1758298135730,0.2,238.26,238.25,141.21818259]
[1758298135936,0.88,238.26,238.25,22.32641865]
[1758298136137,0.2,238.26,238.25,56.20091082]
[1758298136846,0.2,238.26,238.25,60.39818259]
[1758298137148,0.2,238.26,238.25,56.20091082]
[1758298137348,0.88,238.26,238.25,56.20091082]
[1758298137540,0.88,238.26,238.25,22.32641865]
[1758298137743,0.88,238.26,238.25,54.72641865]
[1758298138425,0.88,238.26,238.25,56.20091082]
[1758298138844,0.2,238.26,238.25,56.20091082]
[1758298139147,0.2,238.26,238.25,56.86091082]
[1758298139730,0.2,238.26,238.25,61.05818259]
[1758298141926,0.2,238.26,238.25,59.58369042]
[1758298142458,0.2,238.26,238.25,61.05818259]
[1758298142761,0.2,238.26,238.25,61.34250573]
[1758298143132,0.2,238.26,238.25,61.05818259]
[1758298143836,0.2,238.26,238.25,141.85818259]
[1758298147429,0.2,238.26,238.25,142.14250573]
[1758298151757,0.2,238.26,238.25,142.96880772]
[1758298154858,0.2,238.26,238.25,140.66801356]
[1758298155052,0.2,238.26,238.25,142.96880772]
[1758298155272,0.2,238.26,238.25,140.66801356]
[1758298155434,0.2,238.26,238.25,142.96880772]
[1758298155634,0.1,238.29,238.28,22.32641865]
[1758298155878,0.1,238.29,238.28,137.82721281]
[1758298156035,0.1,238.29,238.28,135.52641865]
[1758298156431,0.1,238.29,238.28,137.82721281]
[1758298156862,0.1,238.29,238.28,142.02395613]
[1758298158361,0.82,238.29,238.28,137.82721281]
[1758298158562,0.82,238.29,238.28,105.42721281]
[1758298158759,0.82,238.29,238.28,137.82721281]
[1758298159162,0.82,238.29,238.28,142.02395613]
[1758298159376,0.82,238.29,238.28,105.42721281]
[1758298159668,0.82,238.29,238.28,137.82721281]
[1758298160644,0.82,238.29,238.28,142.02395613]
[1758298160839,0.82,238.29,238.28,105.42721281]
[1758298161045,0.82,238.29,238.28,137.82721281]
[1758298162264,0.82,238.29,238.28,142.02395613]
[1758298163257,0.1,238.29,238.28,142.02395613]
[1758298164159,0.1,238.29,238.28,139.72316197]
[1758298164466,0.1,238.29,238.28,142.02395613]
[1758298165681,0.1,238.3,238.28,62.18827927]
[1758298165845,0.1,238.3,238.29,17.28036803]
[1758298167179,0.1,238.3,238.29,20.85635446]
[1758298167344,0.1,238.3,238.29,23.15714862]
[1758298167678,0.1,238.3,238.29,22.19282548]
[1758298168171,0.1,238.3,238.29,54.59282548]
[1758298169065,0.46,238.34,238.29,65.0842435]
[1758298169264,2.30079416,238.4,238.34,13.59559401]
[1758298169461,2.40079416,238.41,238.38,22.32641865]
[1758298169658,0.1,238.41,238.38,54.72641865]
[1758298171076,0.76,238.39,238.38,54.72641865]
[1758298171447,0.76,238.39,238.38,22.32641865]
[1758298171646,0.76,238.39,238.38,54.72641865]
[1758298175880,3.06079416,238.39,238.38,54.72641865]
[1758298176750,0.76,238.39,238.38,54.72641865]
[1758298177150,3.06079416,238.39,238.38,54.72641865]
[1758298177350,3.06079416,238.39,238.38,22.32641865]
[1758298177571,3.06079416,238.39,238.38,32.4]
[1758298179905,0.76,238.39,238.38,32.4]
[1758298180090,3.06079416,238.39,238.38,32.4]
[1758298183066,3.06079416,238.39,238.37,13.59559401]
[1758298183272,2.96079416,238.38,238.37,13.59559401]
[1758298183465,0.66,238.38,238.37,45.99559401]
[1758298183781,2.96079416,238.38,238.37,45.99559401]
[1758298184184,0.66,238.38,238.37,45.99559401]
[1758298184411,2.96079416,238.38,238.37,45.99559401]
[1758298185381,0.66,238.38,238.37,32.4]
[1758298185681,2.96079416,238.38,238.37,32.4]
[1758298185890,2.96079416,238.38,238.35,13.59559401]
[1758298186080,2.30079416,238.36,238.35,13.59559401]
[1758298186384,2.96079416,238.36,238.35,45.99559401]
[1758298186691,0.66,238.36,238.35,45.99559401]
[1758298187382,2.96079416,238.36,238.35,45.99559401]
[1758298188585,2.96079416,238.36,238.3,8.73082464]
[1758298188893,31.2,238.33,238.31,45.99559401]
[1758298189191,0.66,238.32,238.31,45.99559401]
[1758298189763,0.66,238.32,238.26,198.73082464]
[1758298189965,0.66,238.31,238.29,8.73082464]
[1758298190175,2.96079416,238.3,238.29,8.73082464]
[1758298190475,0.66,238.3,238.29,41.13082464]
[1758298190675,0.66,238.3,238.29,54.72641865]
[1758298190874,31.2,238.31,238.3,13.59559401]
[1758298191076,12.60901545,238.33,238.3,13.59559401]
[1758298191077,12.60901545,238.33,238.32,13.59559401]
[1758298191280,12.60901545,238.33,238.32,45.99559401]
[1758298191678,31.2,238.34,238.32,45.99559401]
[1758298192096,31.2,238.34,238.33,8.73082464]
[1758298193399,2.96079416,238.36,238.34,13.59559401]
[1758298193708,2.96079416,238.36,238.35,45.99559401]
[1758298194074,2.96079416,238.36,238.35,54.72641865]
[1758298194374,0.66,238.36,238.35,54.72641865]
[1758298194668,2.96079416,238.36,238.35,54.72641865]
[1758298195574,2.96079416,238.36,238.35,41.13082464]
[1758298195891,2.96079416,238.36,238.35,32.4]
[1758298197193,31.2,238.34,238.33,22.32641865]
[1758298197427,34.18079416,238.34,238.33,45.99559401]
[1758298198401,33.45594885,238.34,238.33,54.72641865]
[1758298198700,33.45594885,238.34,238.33,45.99559401]
[1758298198896,33.45594885,238.34,238.33,54.72641865]
[1758298199098,33.45594885,238.34,238.33,45.99559401]
[1758298199404,33.45594885,238.34,238.33,54.72641865]
[1758298199985,33.45594885,238.34,238.33,22.32641865]
[1758298200295,33.45594885,238.34,238.33,45.99559401]
[1758298200501,32.77594885,238.34,238.33,54.72641865]
[1758298201093,33.50079416,238.34,238.33,54.72641865]
[1758298201482,31.2,238.34,238.33,54.72641865]
[1758298201787,33.50079416,238.34,238.33,54.72641865]
[1758298201994,34.20079416,238.34,238.33,54.72641865]
[1758298202901,33.50079416,238.34,238.33,54.72641865]
[1758298203498,34.20079416,238.34,238.33,54.72641865]
[1758298203688,33.50079416,238.34,238.33,54.72641865]
[1758298203894,34.20079416,238.34,238.33,54.72641865]
[1758298204984,33.50079416,238.34,238.33,54.72641865]
[1758298205486,33.50079416,238.34,238.33,55.43641865]
[1758298205686,33.50079416,238.34,238.33,54.72641865]
[1758298206184,31.2,238.34,238.33,54.72641865]
[1758298206388,33.50079416,238.34,238.33,54.72641865]
[1758298208421,33.50079416,238.34,238.33,55.43641865]
[1758298208593,33.50079416,238.34,238.33,54.72641865]
[1758298209490,33.50079416,238.34,238.33,23.03641865]
[1758298209708,33.50079416,238.34,238.33,54.70641865]
[1758298210205,2.30079416,238.37,238.33,55.41641865]
[1758298210502,31.2,238.35,238.34,14.30559401]
[1758298211209,31.2,238.36,238.34,14.30559401]
[1758298211421,33.50079416,238.36,238.35,45.97559401]
[1758298211606,2.40079416,238.39,238.35,55.41641865]
[1758298211797,31.2,238.38,238.37,22.32641865]
[1758298211988,31.2,238.38,238.37,54.70641865]
[1758298212391,32.67255389,238.38,238.37,55.41641865]
[1758298212688,32.67255389,238.38,238.37,54.70641865]
[1758298212915,33.37255389,238.38,238.37,22.32641865]
[1758298213093,33.37255389,238.38,238.37,54.70641865]
[1758298214206,32.67255389,238.38,238.37,54.70641865]
[1758298215390,31.2,238.38,238.37,54.70641865]
[1758298215618,32.67255389,238.38,238.37,54.70641865]
[1758298218001,32.67255389,238.38,238.37,22.32641865]
[1758298218201,32.67255389,238.38,238.37,54.70641865]
[1758298218615,32.67255389,238.38,238.37,22.32641865]
[1758298218918,32.67255389,238.38,238.37,54.70641865]
[1758298220518,32.67255389,238.38,238.37,55.41641865]
[1758298220519,31.2,238.38,238.37,55.41641865]
[1758298222410,3.63012036,238.39,238.37,55.41641865]
[1758298222729,3.63012036,238.39,238.38,14.30559401]
[1758298222730,0.1,238.39,238.38,14.30559401]
[1758298223514,0.1,238.39,238.38,46.68559401]
[1758298224797,0.1,238.39,238.38,15.7781479]
[1758298225106,0.1,238.39,238.38,46.68559401]
[1758298225303,0.1,238.39,238.38,48.1581479]
[1758298225917,0.1,238.39,238.38,52.3531307]
[1758298229004,0.1,238.39,238.38,50.88057681]
[1758298229199,0.1,238.39,238.38,52.3531307]
[1758298232118,0.1,238.39,238.38,50.88057681]
[1758298232321,0.1,238.39,238.38,52.3531307]
[1758298234727,0.1,238.39,238.38,50.88057681]
[1758298234932,0.1,238.39,238.38,52.3531307]
[1758298236401,0.1,238.39,238.38,14.30559401]
[1758298236610,0.1,238.39,238.38,45.95559401]
[1758298236825,0.1,238.39,238.38,47.4281479]
[1758298237025,0.1,238.39,238.38,48.0781479]
[1758298237324,0.1,238.39,238.38,52.2731307]
[1758298241823,0.1,238.39,238.38,133.0731307]
[1758298242426,0.1,238.39,238.38,128.8781479]
[1758298243927,0.1,238.39,238.38,133.0731307]
[1758298246910,0.1,238.39,238.38,131.60057681]
[1758298247114,0.1,238.39,238.38,99.24057681]
[1758298247324,0.1,238.39,238.38,131.60057681]
[1758298247523,0.1,238.39,238.38,133.0731307]
[1758298249329,0.1,238.39,238.38,134.75285019]
[1758298249740,0.1,238.39,238.38,133.0731307]
[1758298251955,0.1,238.39,238.38,96.5181479]
[1758298252254,0.1,238.39,238.38,51.6231307]
[1758298252418,0.1,238.39,238.38,52.2731307]
[1758298255150,0.1,238.39,238.38,51.6231307]
[1758298255526,0.1,238.39,238.38,52.3431307]
[1758298256035,0.1,238.39,238.38,51.6231307]
[1758298256235,0.1,238.39,238.38,13.59559401]
[1758298256430,0.1,238.39,238.38,47.4281479]
[1758298256647,0.1,238.39,238.38,45.95559401]
[1758298256949,0.1,238.39,238.38,47.4281479]
[1758298258647,0.1,238.39,238.38,48.1381479]
[1758298259245,0.1,238.39,238.38,52.3331307]
[1758298260962,0.1,238.39,238.38,15.0681479]
[1758298261259,0.79,238.39,238.38,47.4281479]
[1758298261450,0.1,238.39,238.38,47.4281479]
[1758298263264,0.79,238.39,238.38,45.95559401]
[1758298263437,0.79,238.39,238.38,13.59559401]
[1758298263746,0.79,238.39,238.38,45.95559401]
[1758298264123,0.79,238.39,238.38,47.4281479]
[1758298264337,0.1,238.39,238.38,47.4281479]
[1758298264754,0.79,238.39,238.38,47.4281479]
[1758298265340,0.1,238.39,238.38,47.4281479]
[1758298266949,0.79,238.39,238.38,47.4281479]
[1758298267160,0.1,238.39,238.38,47.4281479]
[1758298267338,0.1,238.39,238.38,52.75262898]
[1758298267654,0.1,238.39,238.38,133.55262898]
[1758298267827,0.1,238.39,238.38,133.1331307]
[1758298268225,0.1,238.39,238.38,133.3402963]
[1758298268437,0.1,238.39,238.38,134.81285019]
[1758298270553,0.1,238.39,238.38,134.79285019]
[1758298270743,0.1,238.39,238.38,135.07717333]
[1758298271753,0.1,238.41,238.4,8.73082464]
[1758298271974,0.1,238.41,238.4,137.35843562]
[1758298272141,0.1,238.41,238.4,136.17641865]
[1758298272337,0.1,238.41,238.4,150.30585172]
[1758298272542,0.1,238.41,238.4,151.98514809]
[1758298272940,0.1,238.41,238.4,119.92947123]
[1758298273144,0.1,238.41,238.4,152.26947123]
[1758298273346,0.1,238.41,238.4,156.4641021]
[1758298273864,0.1,238.41,238.4,157.28965418]
[1758298274252,0.1,238.45,238.44,22.32641865]
[1758298274459,0.1,238.45,238.44,56.96452462]
[1758298275248,0.1,238.45,238.44,61.15845181]
[1758298275445,0.1,238.45,238.44,62.83774818]
[1758298275945,0.79,238.45,238.44,58.64382099]
[1758298276551,0.79,238.45,238.44,56.96452462]
[1758298277361,0.79,238.45,238.44,137.76452462]
[1758298277565,0.79,238.45,238.44,105.42452462]
[1758298277769,0.79,238.45,238.44,137.76452462]
[1758298279667,0.1,238.45,238.44,137.76452462]
[1758298279872,0.1,238.45,238.44,105.42452462]
[1758298280179,0.79,238.45,238.44,105.42452462]
[1758298280460,0.79,238.45,238.44,135.46641865]
[1758298282047,0.29,238.45,238.44,103.12641865]
[1758298282575,0.29,238.45,238.44,135.46641865]
[1758298283365,0.29,238.45,238.44,54.66641865]
[1758298284247,0.29,238.45,238.44,22.32641865]
[1758298284584,0.29,238.45,238.44,54.66641865]
[1758298284787,2.58810597,238.45,238.44,22.32641865]
[1758298285074,2.58810597,238.45,238.44,54.66641865]
[1758298287273,2.58810597,238.45,238.44,13.59559401]
[1758298287447,2.58810597,238.45,238.44,45.93559401]
[1758298287773,2.58810597,238.45,238.44,54.66641865]
[1758298288176,0.58810597,238.45,238.44,54.66641865]
[1758298289075,31.3,238.49,238.45,13.59559401]
[1758298289258,2.39810597,238.49,238.47,13.59559401]
[1758298289458,0.1,238.49,238.48,32.34]
[1758298290069,0.79,238.49,238.45,13.59559401]
[1758298290377,0.69,238.48,238.46,32.34]
[1758298290669,2.98810597,238.47,238.46,45.93559401]
[1758298291057,2.98810597,238.47,238.46,32.34]
[1758298291874,2.98810597,238.47,238.43,13.59559401]
[1758298292174,2.98810597,238.46,238.45,13.59559401]
[1758298292381,2.98810597,238.46,238.45,45.93559401]
[1758298293071,31.2,238.47,238.45,46.59559401]
[1758298293275,0.79,238.49,238.48,13.59559401]
[1758298293476,0.79,238.49,238.48,45.93559401]
[1758298293659,3.08810597,238.49,238.48,45.93559401]
[1758298295990,2.39810597,238.49,238.48,45.93559401]
[1758298296199,0.1,238.49,238.48,45.93559401]
[1758298297292,0.1,238.49,238.48,13.59559401]
[1758298297466,0.1,238.49,238.48,45.93559401]
[1758298299077,3.08810597,238.49,238.48,13.59559401]
[1758298299290,3.08810597,238.49,238.48,45.93559401]
[1758298299463,0.79,238.49,238.48,45.93559401]
[1758298299662,2.39810597,238.49,238.48,45.93559401]
[1758298299879,3.08810597,238.49,238.48,45.93559401]
[1758298300389,2.39810597,238.49,238.48,45.93559401]
[1758298300967,3.08810597,238.49,238.48,45.93559401]
[1758298301693,3.08810597,238.49,238.48,13.59559401]
[1758298301859,3.08810597,238.49,238.48,32.32]
[1758298302059,34.28810597,238.49,238.48,32.32]
[1758298303088,31.2,238.48,238.46,13.59559401]
[1758298303270,31.2,238.46,238.45,8.73082464]
[1758298303475,33.49810597,238.46,238.45,54.64641865]
[1758298303771,2.29810597,238.46,238.45,54.64641865]
[1758298303979,2.29810597,238.46,238.45,45.91559401]
[1758298304491,2.29810597,238.46,238.45,54.64641865]
[1758298305472,2.29810597,238.47,238.46,13.59559401]
[1758298305677,2.29810597,238.47,238.46,45.91559401]
[1758298308582,2.29810597,238.47,238.46,32.32]
[1758298308796,2.98810597,238.47,238.46,32.32]
[1758298309692,2.29810597,238.47,238.46,32.32]
[1758298309882,2.98810597,238.47,238.46,32.32]
[1758298310697,2.29810597,238.47,238.46,32.32]
[1758298310895,34.18810597,238.47,238.46,32.32]
[1758298311089,34.18810597,238.47,238.46,32.14400001]
[1758298311479,2.29810597,238.47,238.46,32.14400001]
[1758298311989,33.49810597,238.47,238.46,32.14400001]
[1758298312597,2.29810597,238.47,238.46,32.14400001]
[1758298313005,2.29810597,238.47,238.46,46.39959402]
[1758298313197,2.29810597,238.47,238.46,45.73959402]
[1758298314802,2.29810597,238.47,238.46,46.39959402]
[1758298315033,33.49810597,238.48,238.46,46.39959402]
[1758298315194,33.49810597,238.48,238.47,14.25559401]
[1758298315510,0.1,238.49,238.47,22.98641865]
[1758298315696,0.1,238.49,238.48,33.01]
[1758298315898,0.1,238.49,238.48,46.60559401]
[1758298318809,0.1,238.49,238.48,14.28559401]
[1758298319014,0.1,238.49,238.48,46.60559401]
[1758298321516,0.1,238.49,238.48,13.59559401]
[1758298321710,0.1,238.49,238.48,32.32]
[1758298321711,3.11810597,238.49,238.48,32.32]
[1758298321908,4.69621194,238.49,238.48,32.32]
[1758298322091,8.21454717,238.49,238.48,32.32]
[1758298322291,4.69621194,238.49,238.48,32.32]
[1758298322497,2.39810597,238.49,238.48,32.32]
[1758298323404,3.11810597,238.49,238.48,32.32]
[1758298323810,2.39810597,238.49,238.48,32.32]
[1758298324013,3.11810597,238.49,238.48,32.32]
[1758298325212,31.2,238.47,238.46,13.59559401]
[1758298325387,33.49810597,238.47,238.46,45.91559401]
[1758298328811,2.29810597,238.48,238.46,45.91559401]
[1758298329020,31.2,238.47,238.46,45.91559401]
[1758298329215,31.2,238.47,238.41,9.41082464]
[1758298329216,31.2,238.46,238.41,9.41082464]
[1758298329520,31.2,238.46,238.32,4.19588985]
[1758298329521,3.01810597,238.46,238.42,45.91559401]
[1758298329698,0.72,238.45,238.43,32.32]
[1758298329896,37.7364412,238.44,238.38,13.59559401]
[1758298330114,4.23833523,238.43,238.38,13.59559401]
[1758298330301,31.2,238.4,238.39,45.91559401]
[1758298330705,31.2,238.41,238.39,45.91559401]
[1758298330901,31.2,238.4,238.39,45.91559401]
[1758298331321,31.2,238.4,238.39,46.59559401]
[1758298331724,31.2,238.4,238.39,45.91559401]
[1758298332818,0.72,238.4,238.39,45.91559401]
[1758298333008,31.2,238.41,238.37,8.73082464]
[1758298333214,31.2,238.41,238.38,45.91559401]
[1758298333421,2.29810597,238.4,238.38,45.91559401]
[1758298333628,2.29810597,238.39,238.36,13.59559401]
[1758298333814,1.47256061,238.39,238.37,41.05082464]
[1758298334706,31.2,238.38,238.37,54.64641865]
[1758298335119,31.2,238.38,238.37,45.91559401]
[1758298335424,32.67256061,238.38,238.37,45.91559401]
[1758298336626,1.47256061,238.38,238.37,45.91559401]
[1758298338535,1.47256061,238.38,238.37,32.32]
[1758298339123,1.47256061,238.38,238.35,13.59559401]
[1758298339124,31.2,238.37,238.35,13.59559401]
[1758298339313,31.2,238.37,238.36,32.32]
[1758298340519,32.67256061,238.37,238.36,32.32]
[1758298343645,31.2,238.36,238.32,0.68]
[1758298343934,31.92,238.36,238.33,45.91559401]
[1758298344139,0.72,238.36,238.34,32.32]
[1758298344707,13.3258365,238.36,238.34,32.32]
[1758298345055,12.6058365,238.36,238.34,32.32]
[1758298345239,4.28879395,238.35,238.34,32.32]
[1758298345810,4.28879395,238.35,238.34,32.99]
[1758298346322,2.81623334,238.35,238.34,32.99]
[1758298346507,4.28879395,238.35,238.34,32.99]
[1758298346939,2.81623334,238.35,238.34,46.58559401]
[1758298347141,12.6058365,238.37,238.35,13.59559401]
[1758298347354,12.6058365,238.37,238.36,41.72082464]
[1758298347643,2.81448412,238.37,238.36,41.72082464]
[1758298347947,1.47256061,238.39,238.37,13.59559401]
[1758298348139,4.28704473,238.39,238.38,45.91559401]
[1758298348925,4.28704473,238.39,238.38,46.58559401]
[1758298349443,1.47256061,238.39,238.38,46.58559401]
[1758298349941,1.47256061,238.39,238.38,32.32]
[1758298352447,1.47256061,238.39,238.37,13.59559401]
[1758298352621,1.47256061,238.39,238.38,32.32]
[1758298353242,2.81448412,238.4,238.39,13.59559401]
[1758298353437,4.28704473,238.4,238.38,32.32]
[1758298353642,1.47256061,238.4,238.38,32.32]
[1758298354247,1.47256061,238.4,238.38,32.99]
[1758298355345,1.47256061,238.39,238.38,45.91559401]
[1758298356546,2.81448412,238.41,238.4,8.73082464]
[1758298356744,3.51833523,238.44,238.4,8.73082464]
[1758298356745,1.47256061,238.44,238.41,13.59559401]
[1758298357052,31.2,238.43,238.42,46.58559401]
[1758298357234,34.01448412,238.43,238.42,46.58559401]
[1758298357543,2.81448412,238.43,238.42,46.58559401]
[1758298357750,4.28704473,238.45,238.42,46.58559401]
[1758298357925,4.28704473,238.45,238.42,55.31641865]
[1758298358249,4.28704473,238.45,238.43,0.67]
[1758298358433,4.28704473,238.45,238.44,32.32]
[1758298358743,34.01448412,238.46,238.44,32.32]
[1758298358924,4.28704473,238.45,238.44,32.32]
[1758298359551,4.28704473,238.45,238.44,32.99]
[1758298359735,2.81448412,238.45,238.44,32.99]
[1758298359934,1.57256061,238.49,238.45,13.59559401]
[1758298360137,32.67256061,238.48,238.46,32.32]
[1758298360332,0.1,238.49,238.48,13.59559401]
[1758298360625,0.1,238.49,238.48,45.91559401]
[1758298360824,0.1,238.49,238.48,46.58559401]
[1758298361225,2.91362039,238.49,238.48,46.58559401]
[1758298361454,4.386181,238.49,238.48,32.32]
[1758298361957,4.386181,238.49,238.48,32.99]
[1758298362154,4.386181,238.49,238.48,32.32]
[1758298362533,4.386181,238.49,238.48,32.99]
[1758298363137,2.91362039,238.49,238.48,32.99]
[1758298363632,4.386181,238.49,238.48,32.99]
[1758298363858,4.386181,238.49,238.48,32.32]
[1758298364759,5.076181,238.49,238.44,22.32641865]
[1758298364945,3.50362039,238.48,238.45,32.3]
[1758298365254,1.47256061,238.46,238.42,13.59559401]
[1758298365456,1.47256061,238.43,238.38,8.73082464]
[1758298365767,34.70362039,238.42,238.36,13.59559401]
[1758298365957,2.81362039,238.41,238.38,13.59559401]
[1758298366153,2.81362039,238.41,238.37,41.03082464]
[1758298366154,3.50362039,238.41,238.39,32.3]
[1758298366366,34.01362039,238.41,238.39,32.3]
[1758298366658,4.286181,238.4,238.39,32.3]
[1758298369446,35.486181,238.4,238.39,32.3]
[1758298373260,35.486181,238.4,238.37,13.59559401]
[1758298373438,34.01362039,238.39,238.37,0.67]
[1758298373762,31.2,238.39,238.38,32.3]
[1758298373964,34.02029886,238.39,238.38,32.3]
[1758298374738,34.02029886,238.39,238.23,54.29767133]
[1758298374739,36.18285947,238.39,238.31,8.73082464]
[1758298375072,1.47256061,238.34,238.33,8.73082464]
[1758298375367,1.47256061,238.34,238.33,0.67]
[1758298375552,31.2,238.36,238.34,13.59559401]
[1758298375760,31.2,238.36,238.35,45.89559401]
[1758298376059,2.82059436,238.36,238.35,32.97]
[1758298376362,2.82059436,238.37,238.35,32.97]
[1758298376962,1.47256061,238.36,238.35,32.97]
[1758298378069,1.47256061,238.36,238.35,32.99]
[1758298378441,4.29315497,238.36,238.35,32.32]
[1758298379772,4.29315497,238.36,238.35,32.97]
[1758298380367,4.29315497,238.36,238.35,32.32]
[1758298380664,2.82059436,238.36,238.35,32.32]
[1758298380849,2.82059436,238.36,238.35,56.76897926]
[1758298381041,4.68428616,238.45,238.35,56.76897926]
[1758298381042,2.82059436,238.41,238.35,56.76897926]
[1758298381241,0.7,238.44,238.35,56.76897926]
[1758298381242,2.82059436,238.4,238.38,15.06815462]
[1758298381548,2.82059436,238.43,238.4,13.59559401]
[1758298381751,2.82059436,238.42,238.41,32.97]
[1758298381963,34.02059436,238.42,238.41,32.97]
[1758298382560,2.82059436,238.42,238.41,48.03815462]
[1758298382751,2.82059436,238.45,238.42,22.32641865]
[1758298382956,34.02059436,238.44,238.43,32.97]
[1758298383166,2.82059436,238.44,238.43,46.56559401]
[1758298386251,0.1,238.49,238.44,22.32641865]
[1758298386252,2.82059436,238.45,238.44,22.32641865]
[1758298386466,2.82059436,238.47,238.45,13.59559401]
[1758298386773,3.61833523,238.49,238.47,13.59559401]
[1758298386974,34.81833523,238.49,238.48,32.3]
[1758298387153,37.63721174,238.49,238.48,32.3]
[1758298388354,2.91887651,238.49,238.48,32.95]
[1758298388761,34.11887651,238.49,238.48,32.95]
[1758298389454,2.91887651,238.49,238.48,32.95]
[1758298389654,34.11887651,238.49,238.48,32.95]
[1758298389889,2.91887651,238.49,238.48,32.95]
[1758298390115,34.11887651,238.49,238.48,32.95]
[1758298390674,2.91887651,238.49,238.48,46.54559401]
[1758298390876,2.91887651,238.49,238.48,55.27641865]
[1758298390877,0.1,238.49,238.48,55.27641865]
[1758298391182,0.1,238.49,238.48,56.74897926]
[1758298391391,2.91887651,238.49,238.48,56.74897926]
[1758298391885,2.91887651,238.49,238.48,55.27641865]
[1758298398284,0.1,238.49,238.48,55.27641865]
[1758298404206,0.1,238.49,238.48,54.60641865]
[1758298406706,0.1,238.49,238.48,22.32641865]
[1758298406889,0.1,238.49,238.48,54.60641865]
[1758298407087,0.1,238.49,238.44,13.59559401]
[1758298407088,31.2,238.46,238.44,13.59559401]
[1758298407288,3.00811501,238.46,238.45,45.87559401]
[1758298407492,2.29811501,238.46,238.45,45.87559401]
[1758298408983,2.91329421,238.49,238.48,22.2689712]
[1758298408984,0.1,238.49,238.48,22.2689712]
[1758298409179,0.1,238.49,238.48,54.5489712]
[1758298409380,31.3,238.49,238.48,55.2689712]
[1758298409580,31.3,238.49,238.48,54.5489712]
[1758298409581,34.11292726,238.49,238.48,54.5489712]
[1758298409876,36.41104227,238.49,238.48,54.5489712]
[1758298410080,37.12104227,238.49,238.48,32.28]
[1758298410481,37.12104227,238.49,238.45,8.67337719]
[1758298410681,2.81292726,238.48,238.46,32.28]
[1758298410900,0.71,238.48,238.46,32.28]
[1758298412000,2.29811501,238.47,238.46,32.28]
[1758298412906,2.29811501,238.47,238.43,14.31559401]
[1758298412907,3.00811501,238.47,238.43,8.67337719]
[1758298413079,3.00811501,238.47,238.37,0.72]
[1758298413080,33.49811501,238.44,238.39,8.67337719]
[1758298413286,33.49811501,238.44,238.38,0.72]
[1758298413287,3.52292726,238.43,238.4,45.87559401]
[1758298413505,0.71,238.43,238.41,32.28]
[1758298413709,34.01292726,238.46,238.38,8.67337719]
[1758298413710,2.81292726,238.45,238.38,8.67337719]
[1758298414008,2.81292726,238.45,238.27,4.1968564]
[1758298414009,0.71,238.42,238.39,32.28]
[1758298414186,0.71,238.41,238.39,32.28]
[1758298414507,33.49811501,238.4,238.39,32.28]
[1758298414680,2.81292726,238.4,238.39,46.59559401]
[1758298414880,2.29811501,238.43,238.39,46.59559401]
[1758298414881,2.29811501,238.42,238.39,41.67337719]
[1758298415087,31.2,238.4,238.39,55.2689712]
[1758298415482,2.29811501,238.42,238.39,55.2689712]
[1758298415694,33.49811501,238.41,238.39,54.5489712]
[1758298415994,2.29811501,238.41,238.39,54.5489712]
[1758298416194,31.2,238.41,238.4,0.72]
[1758298416504,34.01452016,238.41,238.4,0.72]